[Event "Early-Titled-Tuesday-Blitz-February-13-2024"]
[Site "Chess.com"]
[Date "2024.02.13"]
[Round "6"]
[White "KbzasDavid16"]
[Black "KacperKacprzak"]
[Result "0-1"]
[WhiteElo "2550"]
[BlackElo "2741"]
[TimeControl "180+1"]
[EndTime "9:11:39 PST"]
[Termination "KacperKacprzak won on time"]

1. d4 {[%clk 0:03:00.9]} 1... Nf6 {[%clk 0:02:57.6]} 2. Nf3 {[%clk 0:02:58.8]}
2... d5 {[%clk 0:02:56.9]} 3. g3 {[%clk 0:02:58.2]} 3... c5 {[%clk 0:02:56.1]}
4. Bg2 {[%clk 0:02:57.8]} 4... cxd4 {[%clk 0:02:56.7]} 5. O-O {[%clk 0:02:54.2]}
5... e6 {[%clk 0:02:49.1]} 6. b3 {[%clk 0:02:44.4]} 6... Nc6 {[%clk 0:02:47.7]}
7. Nxd4 {[%clk 0:02:42.5]} 7... Bc5 {[%clk 0:02:48.4]} 8. Bb2 {[%clk 0:02:42]}
8... O-O {[%clk 0:02:47.4]} 9. Nxc6 {[%clk 0:02:33.3]} 9... bxc6 {[%clk
0:02:48.3]} 10. c4 {[%clk 0:02:32.5]} 10... a5 {[%clk 0:02:47.2]} 11. Nc3 {[%clk
0:02:30.8]} 11... Ba6 {[%clk 0:02:45.8]} 12. Na4 {[%clk 0:02:26.9]} 12... Be7
{[%clk 0:02:44.9]} 13. Qc2 {[%clk 0:02:24.4]} 13... Rc8 {[%clk 0:02:42]} 14. c5
{[%clk 0:02:16.3]} 14... Nd7 {[%clk 0:02:40.5]} 15. Rfd1 {[%clk 0:02:08.6]}
15... Bb5 {[%clk 0:02:39.6]} 16. Ba3 {[%clk 0:01:59.3]} 16... Bxa4 {[%clk
0:02:19.5]} 17. bxa4 {[%clk 0:01:57.9]} 17... Qc7 {[%clk 0:02:20.4]} 18. e4
{[%clk 0:01:52.5]} 18... Qa7 {[%clk 0:02:18.8]} 19. Rac1 {[%clk 0:01:40.3]}
19... Ne5 {[%clk 0:02:14.9]} 20. Bf1 {[%clk 0:01:24.1]} 20... Rfd8 {[%clk
0:02:14.7]} 21. Bb2 {[%clk 0:01:19.5]} 21... Nd7 {[%clk 0:02:13.9]} 22. exd5
{[%clk 0:01:13.3]} 22... exd5 {[%clk 0:01:45]} 23. Bd4 {[%clk 0:01:11.2]} 23...
Rb8 {[%clk 0:01:43]} 24. Bh3 {[%clk 0:01:00.1]} 24... Nf8 {[%clk 0:01:42]} 25.
Qf5 {[%clk 0:00:57.7]} 25... Ne6 {[%clk 0:01:37.7]} 26. Be3 {[%clk 0:00:33.6]}
26... Rb4 {[%clk 0:01:15.5]} 27. Qe5 {[%clk 0:00:15.5]} 27... Bf6 {[%clk
0:01:13.1]} 28. Qh5 {[%clk 0:00:15]} 28... Re8 {[%clk 0:01:05]} 29. Rb1 {[%clk
0:00:03.8]} 29... Qb7 {[%clk 0:00:53]} 30. Rxb4 {[%clk 0:00:02.8]} 30... Qxb4
{[%clk 0:00:53.9]} 31. Qf5 {[%clk 0:00:03]} 31... Qxa4 {[%clk 0:00:51.8]} 32.
Rb1 {[%clk 0:00:02.7]} 32... Qxa2 {[%clk 0:00:50.1]} 33. Rb6 {[%clk 0:00:03.4]}
33... d4 {[%clk 0:00:47]} 34. Bf4 {[%clk 0:00:01.9]} 34... Qa4 {[%clk
0:00:30.7]} 35. Rb7 {[%clk 0:00:01.5]} 35... Qc4 {[%clk 0:00:26]} 36. Bg4 {[%clk
0:00:01.7]} 36... Qxc5 {[%clk 0:00:25]} 37. Qe4 {[%clk 0:00:01.4]} 37... Qd5
{[%clk 0:00:20.6]} 38. Qxd5 {[%clk 0:00:01.5]} 38... cxd5 {[%clk 0:00:21.5]} 39.
Ra7 {[%clk 0:00:02.2]} 39... Nxf4 {[%clk 0:00:19.7]} 40. gxf4 {[%clk 0:00:03.1]}
40... g6 {[%clk 0:00:18.8]} 41. Rxa5 {[%clk 0:00:02.7]} 41... Re4 {[%clk
0:00:19.1]} 42. Rxd5 {[%clk 0:00:02.3]} 42... Rxf4 {[%clk 0:00:19.7]} 43. f3
{[%clk 0:00:02.1]} 43... h5 {[%clk 0:00:19.4]} 44. Bh3 {[%clk 0:00:02.1]} 44...
Rxf3 {[%clk 0:00:19.4]} 45. Bg2 {[%clk 0:00:02.4]} 45... Rc3 {[%clk 0:00:19.5]}
46. Be4 {[%clk 0:00:01.7]} 46... Rc7 {[%clk 0:00:18.7]} 47. Kg2 {[%clk 0:00:02]}
47... Kg7 {[%clk 0:00:19.3]} 48. Rd8 {[%clk 0:00:02.2]} 48... Be5 {[%clk
0:00:17.6]} 49. Re8 {[%clk 0:00:01.8]} 49... Bf4 {[%clk 0:00:15.7]} 50. Rd8
{[%clk 0:00:02.2]} 50... f5 {[%clk 0:00:15.6]} 51. Bf3 {[%clk 0:00:01.8]} 51...
Be5 {[%clk 0:00:16]} 52. Rd5 {[%clk 0:00:01.3]} 52... Kf6 {[%clk 0:00:16.2]} 53.
h3 {[%clk 0:00:01.9]} 53... h4 {[%clk 0:00:15.8]} 54. Kf2 {[%clk 0:00:02.3]}
54... Rc2+ {[%clk 0:00:15.9]} 55. Ke1 {[%clk 0:00:01.6]} 55... g5 {[%clk
0:00:15.9]} 56. Rd8 {[%clk 0:00:01.5]} 56... Rh2 {[%clk 0:00:15.8]} 57. Rf8+
{[%clk 0:00:01.6]} 57... Ke6 {[%clk 0:00:16.3]} 58. Rg8 {[%clk 0:00:01.8]} 58...
Bf4 {[%clk 0:00:16.2]} 59. Rg6+ {[%clk 0:00:01.6]} 59... Ke5 {[%clk 0:00:15.8]}
60. Rg8 {[%clk 0:00:02.2]} 60... Be3 {[%clk 0:00:15.7]} 61. Re8+ {[%clk
0:00:02.4]} 61... Kf4 {[%clk 0:00:16.4]} 62. Bd5 {[%clk 0:00:02.8]} 62... Rxh3
{[%clk 0:00:16.7]} 63. Rf8 {[%clk 0:00:02.4]} 63... Kg4 {[%clk 0:00:15.7]} 64.
Be6 {[%clk 0:00:03]} 64... Rf3 {[%clk 0:00:16.3]} 65. Ke2 {[%clk 0:00:03]} 65...
h3 {[%clk 0:00:14.4]} 66. Rh8 {[%clk 0:00:02.6]} 66... Kg3 {[%clk 0:00:12.5]}
67. Rxh3+ {[%clk 0:00:01.8]} 67... Kxh3 {[%clk 0:00:13.4]} 68. Kxf3 {[%clk
0:00:02.4]} 68... g4+ {[%clk 0:00:13.3]} 69. Ke2 {[%clk 0:00:03.1]} 69... f4
{[%clk 0:00:13.5]} 70. Kd3 {[%clk 0:00:03.6]} 70... f3 {[%clk 0:00:13.4]} 71.
Ke4 {[%clk 0:00:03.5]} 71... Kg3 {[%clk 0:00:12.6]} 72. Kd3 {[%clk 0:00:02]}
72... Kf4 {[%clk 0:00:12.3]} 73. Bf7 {[%clk 0:00:01.6]} 73... g3 {[%clk
0:00:12.8]} 0-1

[Event "Early-Titled-Tuesday-Blitz-February-13-2024"]
[Site "Chess.com"]
[Date "2024.02.13"]
[Round "6"]
[White "Chess4always"]
[Black "mary-sanna"]
[Result "1/2-1/2"]
[WhiteElo "1979"]
[BlackElo "2149"]
[TimeControl "180+1"]
[EndTime "9:11:45 PST"]
[Termination "Game drawn by stalemate"]

1. d4 {[%clk 0:03:00.9]} 1... d5 {[%clk 0:02:59.6]} 2. Nf3 {[%clk 0:02:56.4]}
2... Nf6 {[%clk 0:02:49.4]} 3. Bf4 {[%clk 0:02:55.8]} 3... c5 {[%clk 0:02:31.5]}
4. c3 {[%clk 0:02:55.3]} 4... Nc6 {[%clk 0:02:30.7]} 5. e3 {[%clk 0:02:55]} 5...
Nh5 {[%clk 0:02:28]} 6. Bg3 {[%clk 0:02:51.1]} 6... Qb6 {[%clk 0:02:25.4]} 7.
Qb3 {[%clk 0:02:50.9]} 7... Nxg3 {[%clk 0:02:20.7]} 8. hxg3 {[%clk 0:02:49.8]}
8... c4 {[%clk 0:02:21.1]} 9. Qxb6 {[%clk 0:02:49.6]} 9... axb6 {[%clk 0:02:22]}
10. Be2 {[%clk 0:02:50.2]} 10... b5 {[%clk 0:02:22.1]} 11. O-O {[%clk
0:02:47.3]} 11... b4 {[%clk 0:02:22.5]} 12. a3 {[%clk 0:02:47.6]} 12... b3
{[%clk 0:02:14.8]} 13. Nbd2 {[%clk 0:02:47.1]} 13... Bf5 {[%clk 0:02:11.2]} 14.
Nh4 {[%clk 0:02:45.1]} 14... Bc2 {[%clk 0:02:10]} 15. Bd1 {[%clk 0:02:43.1]}
15... Bd3 {[%clk 0:02:00.4]} 16. Re1 {[%clk 0:02:42.9]} 16... e6 {[%clk
0:01:59.8]} 17. e4 {[%clk 0:02:43.2]} 17... O-O-O {[%clk 0:01:53.5]} 18. exd5
{[%clk 0:02:40.4]} 18... Rxd5 {[%clk 0:01:51.5]} 19. Bf3 {[%clk 0:02:40.7]}
19... Rd7 {[%clk 0:01:42.9]} 20. Be4 {[%clk 0:02:40.6]} 20... Bxe4 {[%clk
0:01:39.7]} 21. Rxe4 {[%clk 0:02:41.5]} 21... b5 {[%clk 0:01:39.4]} 22. Nhf3
{[%clk 0:02:38.3]} 22... Bd6 {[%clk 0:01:38.1]} 23. a4 {[%clk 0:02:38.2]} 23...
Ra7 {[%clk 0:01:24.9]} 24. Ree1 {[%clk 0:02:23.4]} 24... bxa4 {[%clk 0:01:22.9]}
25. Nxc4 {[%clk 0:02:23.9]} 25... Be7 {[%clk 0:01:19.5]} 26. Rxa4 {[%clk
0:02:21.1]} 26... Rxa4 {[%clk 0:01:16.2]} 27. Nb6+ {[%clk 0:02:21.6]} 27... Kb7
{[%clk 0:01:16.6]} 28. Nxa4 {[%clk 0:02:22.5]} 28... Ra8 {[%clk 0:01:16.4]} 29.
Nc5+ {[%clk 0:02:16.9]} 29... Bxc5 {[%clk 0:01:15.9]} 30. dxc5 {[%clk
0:02:17.8]} 30... Ra2 {[%clk 0:01:13.8]} 31. Re2 {[%clk 0:02:18.4]} 31... Na5
{[%clk 0:01:12.7]} 32. Nd4 {[%clk 0:02:17]} 32... e5 {[%clk 0:01:11.7]} 33. Rxe5
{[%clk 0:01:55.3]} 33... Rxb2 {[%clk 0:01:11.2]} 34. Re7+ {[%clk 0:01:55.5]}
34... Kc8 {[%clk 0:01:10.5]} 35. Rxf7 {[%clk 0:01:55.5]} 35... Rb1+ {[%clk
0:01:08.7]} 36. Kh2 {[%clk 0:01:51.8]} 36... b2 {[%clk 0:01:09]} 37. Rf8+ {[%clk
0:01:46.5]} 37... Kd7 {[%clk 0:01:07.8]} 38. Rb8 {[%clk 0:01:45.9]} 38... Kc7
{[%clk 0:01:06.4]} 39. Rb5 {[%clk 0:01:27.3]} 39... Nc4 {[%clk 0:01:05.8]} 40.
Ne6+ {[%clk 0:01:09.9]} 40... Kc6 {[%clk 0:01:05.6]} 41. Nd4+ {[%clk 0:01:10.5]}
41... Kd5 {[%clk 0:01:05]} 42. c6+ {[%clk 0:01:09.1]} 42... Kd6 {[%clk
0:01:04.4]} 43. Nc2 {[%clk 0:01:02.8]} 43... Rc1 {[%clk 0:01:01.6]} 44. c7
{[%clk 0:00:57]} 44... Kxc7 {[%clk 0:01:00.8]} 45. Na3 {[%clk 0:00:53.7]} 45...
Nxa3 {[%clk 0:00:55.4]} 46. Rxb2 {[%clk 0:00:54.2]} 46... Rxc3 {[%clk
0:00:55.5]} 47. Re2 {[%clk 0:00:54.4]} 47... Rd3 {[%clk 0:00:54.3]} 48. Re7+
{[%clk 0:00:54.5]} 48... Rd7 {[%clk 0:00:54.5]} 49. Re3 {[%clk 0:00:55.4]} 49...
Nb5 {[%clk 0:00:53.5]} 50. g4 {[%clk 0:00:55.8]} 50... Nd4 {[%clk 0:00:48.8]}
51. f3 {[%clk 0:00:55.3]} 51... Kd6 {[%clk 0:00:45.7]} 52. Ra3 {[%clk
0:00:55.5]} 52... Ke5 {[%clk 0:00:44.6]} 53. Ra5+ {[%clk 0:00:54.9]} 53... Kf4
{[%clk 0:00:43.8]} 54. Ra3 {[%clk 0:00:54]} 54... g5 {[%clk 0:00:41.8]} 55. g3+
{[%clk 0:00:49.7]} 55... Ke5 {[%clk 0:00:41.8]} 56. Kg2 {[%clk 0:00:49.5]} 56...
Rd6 {[%clk 0:00:34.5]} 57. Ra5+ {[%clk 0:00:49.9]} 57... Kf6 {[%clk 0:00:30.8]}
58. f4 {[%clk 0:00:49.4]} 58... Ne6 {[%clk 0:00:28.4]} 59. Rf5+ {[%clk 0:00:46]}
59... Kg6 {[%clk 0:00:27.9]} 60. Kh3 {[%clk 0:00:33.7]} 60... Rd3 {[%clk
0:00:24.2]} 61. Kh2 {[%clk 0:00:30.8]} 61... Rd2+ {[%clk 0:00:23]} 62. Kh3
{[%clk 0:00:30.7]} 62... Rd3 {[%clk 0:00:20.8]} 63. Kh2 {[%clk 0:00:30.7]} 63...
gxf4 {[%clk 0:00:20]} 64. gxf4 {[%clk 0:00:30.9]} 64... h6 {[%clk 0:00:18.8]}
65. Re5 {[%clk 0:00:31]} 65... Nxf4 {[%clk 0:00:18.8]} 66. Re4 {[%clk
0:00:30.5]} 66... Kg5 {[%clk 0:00:18.7]} 67. Ra4 {[%clk 0:00:27.1]} 67... Kxg4
{[%clk 0:00:18.8]} 68. Kg1 {[%clk 0:00:27.9]} 68... Kg3 {[%clk 0:00:17.9]} 69.
Ra1 {[%clk 0:00:25.1]} 69... h5 {[%clk 0:00:17.5]} 70. Kh1 {[%clk 0:00:25.4]}
70... h4 {[%clk 0:00:17.7]} 71. Rg1+ {[%clk 0:00:26]} 71... Kh3 {[%clk
0:00:15.4]} 72. Rf1 {[%clk 0:00:26.6]} 72... Kg4 {[%clk 0:00:14.6]} 73. Rg1+
{[%clk 0:00:26.6]} 73... Rg3 {[%clk 0:00:14.1]} 74. Rf1 {[%clk 0:00:27.1]} 74...
h3 {[%clk 0:00:14]} 75. Rf2 {[%clk 0:00:24.2]} 75... Rf3 {[%clk 0:00:13.2]} 76.
Re2 {[%clk 0:00:20.9]} 76... Kg3 {[%clk 0:00:13.2]} 77. Re1 {[%clk 0:00:20.9]}
77... Ng2 {[%clk 0:00:12.9]} 78. Rg1 {[%clk 0:00:21.2]} 78... Kf2 {[%clk
0:00:11.4]} 79. Rb1 {[%clk 0:00:19.8]} 79... Re3 {[%clk 0:00:11.7]} 80. Rb2+
{[%clk 0:00:20.2]} 80... Kg3 {[%clk 0:00:10.7]} 81. Rb1 {[%clk 0:00:19.3]} 81...
Re1+ {[%clk 0:00:10.9]} 82. Rxe1 {[%clk 0:00:19.8]} 82... Nxe1 {[%clk
0:00:11.8]} 83. Kg1 {[%clk 0:00:20.5]} 83... Nf3+ {[%clk 0:00:11.8]} 84. Kh1
{[%clk 0:00:21.4]} 84... Kf2 {[%clk 0:00:10.8]} 1/2-1/2

[Event "Early-Titled-Tuesday-Blitz-February-13-2024"]
[Site "Chess.com"]
[Date "2024.02.13"]
[Round "6"]
[White "miraitrunks"]
[Black "verrbaa"]
[Result "1/2-1/2"]
[WhiteElo "2195"]
[BlackElo "2480"]
[TimeControl "180+1"]
[EndTime "9:11:50 PST"]
[Termination "Game drawn - insufficient material"]

1. e4 {[%clk 0:02:59.5]} 1... c5 {[%clk 0:02:58.4]} 2. c3 {[%clk 0:02:59.6]}
2... d5 {[%clk 0:02:58.1]} 3. exd5 {[%clk 0:03:00.5]} 3... Qxd5 {[%clk
0:02:58.3]} 4. d4 {[%clk 0:03:01.1]} 4... Nf6 {[%clk 0:02:58.8]} 5. Na3 {[%clk
0:03:01.5]} 5... Qd8 {[%clk 0:02:57.2]} 6. dxc5 {[%clk 0:03:00.3]} 6... Qxd1+
{[%clk 0:02:48]} 7. Kxd1 {[%clk 0:03:01.2]} 7... Ng4 {[%clk 0:02:31.9]} 8. Nh3
{[%clk 0:03:00.4]} 8... e5 {[%clk 0:02:23.9]} 9. Nb5 {[%clk 0:02:55]} 9... Na6
{[%clk 0:02:22.7]} 10. b4 {[%clk 0:02:54.9]} 10... Bd7 {[%clk 0:02:09.1]} 11. f3
{[%clk 0:02:40.8]} 11... Nf6 {[%clk 0:02:07.9]} 12. Bc4 {[%clk 0:02:38.2]} 12...
O-O-O {[%clk 0:01:58.5]} 13. Ke2 {[%clk 0:02:36.1]} 13... Bxh3 {[%clk
0:01:53.3]} 14. gxh3 {[%clk 0:02:34.6]} 14... Kb8 {[%clk 0:01:53.9]} 15. Bxf7
{[%clk 0:02:33.2]} 15... Nc7 {[%clk 0:01:40.5]} 16. Bc4 {[%clk 0:02:24.6]} 16...
Ncd5 {[%clk 0:01:35.1]} 17. Bg5 {[%clk 0:02:08.9]} 17... a6 {[%clk 0:01:29.2]}
18. Bxd5 {[%clk 0:02:02.9]} 18... axb5 {[%clk 0:01:22.6]} 19. Bb3 {[%clk
0:01:57.3]} 19... Be7 {[%clk 0:01:22.5]} 20. Rad1 {[%clk 0:01:55.1]} 20... Kc7
{[%clk 0:01:19.1]} 21. c4 {[%clk 0:01:50.3]} 21... bxc4 {[%clk 0:01:12.9]} 22.
Bxc4 {[%clk 0:01:51.2]} 22... h6 {[%clk 0:01:11.1]} 23. Bxf6 {[%clk 0:01:30.2]}
23... Bxf6 {[%clk 0:01:09.3]} 24. a4 {[%clk 0:01:29.4]} 24... Rd4 {[%clk
0:01:04.6]} 25. Rxd4 {[%clk 0:01:29]} 25... exd4 {[%clk 0:01:05.5]} 26. f4
{[%clk 0:01:24.2]} 26... Re8+ {[%clk 0:01:04.9]} 27. Kf3 {[%clk 0:01:24.7]}
27... Re3+ {[%clk 0:01:04.3]} 28. Kf2 {[%clk 0:01:23.7]} 28... Rc3 {[%clk
0:01:01.9]} 29. Bd5 {[%clk 0:01:19.7]} 29... d3 {[%clk 0:00:59.1]} 30. Rd1
{[%clk 0:01:15.7]} 30... Bd4+ {[%clk 0:00:55.5]} 31. Kf3 {[%clk 0:01:13.4]}
31... d2+ {[%clk 0:00:42]} 32. Ke2 {[%clk 0:01:12.5]} 32... Be3 {[%clk
0:00:40.9]} 33. Bf3 {[%clk 0:01:02.1]} 33... Bxf4 {[%clk 0:00:39.7]} 34. Bg4
{[%clk 0:01:00.4]} 34... Ra3 {[%clk 0:00:34]} 35. Rf1 {[%clk 0:00:55.7]} 35...
g5 {[%clk 0:00:33.6]} 36. h4 {[%clk 0:00:47.3]} 36... Rxa4 {[%clk 0:00:12.7]}
37. hxg5 {[%clk 0:00:46.2]} 37... hxg5 {[%clk 0:00:08.1]} 38. h4 {[%clk
0:00:46.2]} 38... Rxb4 {[%clk 0:00:08.1]} 39. h5 {[%clk 0:00:46]} 39... Re4+
{[%clk 0:00:08.5]} 40. Kd1 {[%clk 0:00:46]} 40... Re7 {[%clk 0:00:03.5]} 41. Kc2
{[%clk 0:00:41.9]} 41... Kc6 {[%clk 0:00:03.7]} 42. Bf3+ {[%clk 0:00:38.8]}
42... Kxc5 {[%clk 0:00:04.2]} 43. Rb1 {[%clk 0:00:37.2]} 43... b5 {[%clk
0:00:04.4]} 44. Bd1 {[%clk 0:00:31.2]} 44... b4 {[%clk 0:00:04.3]} 45. Kd3
{[%clk 0:00:31.2]} 45... Rd7+ {[%clk 0:00:04.4]} 46. Ke2 {[%clk 0:00:31.3]}
46... Re7+ {[%clk 0:00:04]} 47. Kd3 {[%clk 0:00:31.2]} 47... Re3+ {[%clk
0:00:02.4]} 48. Kc2 {[%clk 0:00:31]} 48... Rc3+ {[%clk 0:00:02.3]} 49. Kb2
{[%clk 0:00:29.4]} 49... Rc1 {[%clk 0:00:02.4]} 50. h6 {[%clk 0:00:28.5]} 50...
Rxb1+ {[%clk 0:00:02.6]} 51. Kxb1 {[%clk 0:00:26.7]} 51... Be5 {[%clk
0:00:03.1]} 52. Kc2 {[%clk 0:00:27.1]} 52... Kd4 {[%clk 0:00:02]} 53. Kxd2
{[%clk 0:00:27.3]} 53... Kc4 {[%clk 0:00:02.3]} 54. h7 {[%clk 0:00:24.8]} 54...
Bg7 {[%clk 0:00:01.9]} 55. Kc2 {[%clk 0:00:21.8]} 55... b3+ {[%clk 0:00:02.2]}
56. Kb1 {[%clk 0:00:21.8]} 56... Kb4 {[%clk 0:00:02.8]} 57. Bg4 {[%clk
0:00:20.9]} 57... b2 {[%clk 0:00:02.4]} 58. Bf5 {[%clk 0:00:20.8]} 58... Kc5
{[%clk 0:00:02.7]} 59. Kc2 {[%clk 0:00:16.3]} 59... Kd4 {[%clk 0:00:03]} 60. Kd2
{[%clk 0:00:16.6]} 60... Ke5 {[%clk 0:00:03.2]} 61. Bg6 {[%clk 0:00:16.2]} 61...
Kf4 {[%clk 0:00:03.3]} 62. Ke2 {[%clk 0:00:16.1]} 62... g4 {[%clk 0:00:02.9]}
63. Kf1 {[%clk 0:00:16.3]} 63... Bd4 {[%clk 0:00:02.7]} 64. Kg2 {[%clk
0:00:16.4]} 64... Ke3 {[%clk 0:00:02.9]} 65. Kg3 {[%clk 0:00:13.7]} 65... Kd2
{[%clk 0:00:02.5]} 66. Kxg4 {[%clk 0:00:13.5]} 66... Kc1 {[%clk 0:00:02.8]} 67.
Kg5 {[%clk 0:00:10.6]} 67... b1=Q {[%clk 0:00:02.9]} 68. Bxb1 {[%clk 0:00:10.6]}
68... Kxb1 {[%clk 0:00:03.8]} 69. Kg6 {[%clk 0:00:11.2]} 69... Kc2 {[%clk
0:00:04.2]} 70. Kf7 {[%clk 0:00:12.1]} 70... Kd3 {[%clk 0:00:04.6]} 71. Kg8
{[%clk 0:00:13]} 71... Ke4 {[%clk 0:00:04.8]} 72. h8=Q {[%clk 0:00:11.8]} 72...
Bxh8 {[%clk 0:00:05.3]} 1/2-1/2

[Event "Early-Titled-Tuesday-Blitz-February-13-2024"]
[Site "Chess.com"]
[Date "2024.02.13"]
[Round "6"]
[White "Yaacovn"]
[Black "ChessSkool"]
[Result "1/2-1/2"]
[WhiteElo "2924"]
[BlackElo "2701"]
[TimeControl "180+1"]
[EndTime "9:11:52 PST"]
[Termination "Game drawn by repetition"]

1. d4 {[%clk 0:03:00.9]} 1... d5 {[%clk 0:02:50.5]} 2. e3 {[%clk 0:02:55.5]}
2... Nf6 {[%clk 0:02:49.8]} 3. Bd3 {[%clk 0:02:54.9]} 3... c5 {[%clk 0:02:48.9]}
4. c3 {[%clk 0:02:54.7]} 4... Nc6 {[%clk 0:02:49]} 5. f4 {[%clk 0:02:53.6]} 5...
Bg4 {[%clk 0:02:48.1]} 6. Nf3 {[%clk 0:02:53.3]} 6... e6 {[%clk 0:02:48.6]} 7.
O-O {[%clk 0:02:52.4]} 7... Bd6 {[%clk 0:02:44.1]} 8. Qe1 {[%clk 0:02:50]} 8...
O-O {[%clk 0:02:42.5]} 9. Ne5 {[%clk 0:02:47.7]} 9... Bf5 {[%clk 0:02:42.1]} 10.
Qe2 {[%clk 0:02:45.1]} 10... Bxd3 {[%clk 0:02:40.8]} 11. Nxd3 {[%clk 0:02:41.5]}
11... cxd4 {[%clk 0:02:25.4]} 12. exd4 {[%clk 0:02:40.7]} 12... Ne4 {[%clk
0:02:25.6]} 13. Nd2 {[%clk 0:02:34.6]} 13... f5 {[%clk 0:02:23.5]} 14. Nf3
{[%clk 0:02:34.9]} 14... b5 {[%clk 0:02:15.5]} 15. Bd2 {[%clk 0:02:32.2]} 15...
Qb6 {[%clk 0:02:12]} 16. b4 {[%clk 0:02:30.1]} 16... a5 {[%clk 0:02:11.8]} 17.
a3 {[%clk 0:02:30.3]} 17... Rf7 {[%clk 0:01:26.8]} 18. Nc5 {[%clk 0:02:28.4]}
18... Nd8 {[%clk 0:01:25.6]} 19. Ng5 {[%clk 0:02:17.2]} 19... Rfa7 {[%clk
0:01:23.8]} 20. Qh5 {[%clk 0:02:05]} 20... g6 {[%clk 0:01:23.3]} 21. Qe2 {[%clk
0:01:57.3]} 21... axb4 {[%clk 0:01:16.9]} 22. cxb4 {[%clk 0:01:56.6]} 22... Rxa3
{[%clk 0:01:03.4]} 23. Rxa3 {[%clk 0:01:56.4]} 23... Rxa3 {[%clk 0:01:04.3]} 24.
Ngxe4 {[%clk 0:01:50.9]} 24... dxe4 {[%clk 0:01:00.7]} 25. Rc1 {[%clk
0:01:50.9]} 25... Be7 {[%clk 0:00:46.9]} 26. Be3 {[%clk 0:01:44.6]} 26... Ra8
{[%clk 0:00:24.1]} 27. Qc2 {[%clk 0:01:37.2]} 27... Qd6 {[%clk 0:00:18.3]} 28.
Qe2 {[%clk 0:01:32]} 28... Bf6 {[%clk 0:00:17.7]} 29. Rd1 {[%clk 0:01:24.4]}
29... Nc6 {[%clk 0:00:17.9]} 30. Qxb5 {[%clk 0:01:20.9]} 30... Bxd4 {[%clk
0:00:17]} 31. Kf1 {[%clk 0:01:15.8]} 31... Qd5 {[%clk 0:00:11.6]} 32. Qe2 {[%clk
0:01:08.2]} 32... Ra2 {[%clk 0:00:09.9]} 33. Qb5 {[%clk 0:00:58.3]} 33... Kg7
{[%clk 0:00:06.9]} 34. Nxe6+ {[%clk 0:00:44.3]} 34... Qxe6 {[%clk 0:00:06.6]}
35. Bxd4+ {[%clk 0:00:44.1]} 35... Nxd4 {[%clk 0:00:07.1]} 36. Rxd4 {[%clk
0:00:44.7]} 36... Qb3 {[%clk 0:00:02.7]} 37. Qd7+ {[%clk 0:00:21]} 37... Kh6
{[%clk 0:00:03]} 38. Rd2 {[%clk 0:00:21.9]} 38... Qc4+ {[%clk 0:00:02.4]} 39.
Kf2 {[%clk 0:00:19.5]} 39... e3+ {[%clk 0:00:02.9]} 40. Kxe3 {[%clk 0:00:18.6]}
40... Qe4+ {[%clk 0:00:03.3]} 41. Kf2 {[%clk 0:00:18.9]} 41... Qxf4+ {[%clk
0:00:03.7]} 42. Ke2 {[%clk 0:00:19.5]} 42... Qc4+ {[%clk 0:00:03.4]} 43. Qd3
{[%clk 0:00:18]} 43... Rxd2+ {[%clk 0:00:01.5]} 44. Kxd2 {[%clk 0:00:18]} 44...
Qxb4+ {[%clk 0:00:02.1]} 45. Ke2 {[%clk 0:00:18.6]} 45... Qg4+ {[%clk
0:00:02.4]} 46. Kf2 {[%clk 0:00:18.4]} 46... Qf4+ {[%clk 0:00:03]} 47. Ke2
{[%clk 0:00:18.4]} 47... Kg5 {[%clk 0:00:02.7]} 48. Qd7 {[%clk 0:00:17.2]} 48...
Qe4+ {[%clk 0:00:02.2]} 49. Kf2 {[%clk 0:00:17]} 49... Qh4+ {[%clk 0:00:02.2]}
50. Kf3 {[%clk 0:00:11.9]} 50... Qg4+ {[%clk 0:00:02]} 51. Kf2 {[%clk
0:00:12.2]} 51... Qf4+ {[%clk 0:00:02.5]} 52. Ke2 {[%clk 0:00:12.7]} 52... Qe4+
{[%clk 0:00:02.8]} 53. Kf2 {[%clk 0:00:13.3]} 53... Kh6 {[%clk 0:00:02.7]} 54.
Qd6 {[%clk 0:00:11.9]} 54... f4 {[%clk 0:00:02.4]} 55. Qf6 {[%clk 0:00:11.1]}
55... Qe3+ {[%clk 0:00:02.6]} 56. Kf1 {[%clk 0:00:10.6]} 56... Qd3+ {[%clk
0:00:02.9]} 57. Kf2 {[%clk 0:00:10.5]} 57... Qd2+ {[%clk 0:00:02.9]} 58. Kf3
{[%clk 0:00:08.2]} 58... Qe3+ {[%clk 0:00:03]} 59. Kg4 {[%clk 0:00:08.2]} 59...
Qe2+ {[%clk 0:00:03.6]} 60. Kxf4 {[%clk 0:00:04.3]} 60... Qf2+ {[%clk
0:00:04.1]} 61. Ke5 {[%clk 0:00:04.6]} 61... Qb2+ {[%clk 0:00:03.9]} 62. Ke6
{[%clk 0:00:04.8]} 62... Qb6+ {[%clk 0:00:02.4]} 63. Kf7 {[%clk 0:00:05]} 63...
Qb7+ {[%clk 0:00:02.8]} 64. Qe7 {[%clk 0:00:04.8]} 64... Qd5+ {[%clk 0:00:03.3]}
65. Kf8 {[%clk 0:00:04.6]} 65... Qf5+ {[%clk 0:00:02.9]} 66. Kg8 {[%clk
0:00:04.4]} 66... Qd5+ {[%clk 0:00:03.3]} 67. Qf7 {[%clk 0:00:04.5]} 67... Qd8+
{[%clk 0:00:02.9]} 68. Qf8+ {[%clk 0:00:05]} 68... Qxf8+ {[%clk 0:00:03.4]} 69.
Kxf8 {[%clk 0:00:05.9]} 69... Kg5 {[%clk 0:00:02.4]} 70. Kg7 {[%clk 0:00:05.9]}
70... h5 {[%clk 0:00:02.8]} 71. Kh7 {[%clk 0:00:06.5]} 71... h4 {[%clk 0:00:03]}
72. Kg7 {[%clk 0:00:06.6]} 72... Kf5 {[%clk 0:00:03.5]} 73. Kh6 {[%clk
0:00:06.9]} 73... g5 {[%clk 0:00:03.7]} 74. Kh5 {[%clk 0:00:07.3]} 74... Kf4
{[%clk 0:00:02.1]} 75. h3 {[%clk 0:00:04.8]} 75... Kf5 {[%clk 0:00:02.4]} 76.
Kh6 {[%clk 0:00:05.2]} 76... Kf6 {[%clk 0:00:02.6]} 77. Kh7 {[%clk 0:00:05.3]}
77... Kf7 {[%clk 0:00:02.2]} 78. Kh6 {[%clk 0:00:05.7]} 78... Kf6 {[%clk
0:00:02.8]} 79. Kh5 {[%clk 0:00:05.9]} 79... Kf5 {[%clk 0:00:03.4]} 80. Kh6
{[%clk 0:00:06.4]} 80... g4 {[%clk 0:00:03.9]} 81. Kh5 {[%clk 0:00:06.5]} 81...
gxh3 {[%clk 0:00:04.2]} 82. gxh3 {[%clk 0:00:07]} 82... Kf6 {[%clk 0:00:04.8]}
83. Kxh4 {[%clk 0:00:07]} 83... Kg7 {[%clk 0:00:05.7]} 84. Kg5 {[%clk
0:00:07.3]} 84... Kh8 {[%clk 0:00:06.6]} 85. Kh5 {[%clk 0:00:08]} 85... Kg8
{[%clk 0:00:07.5]} 86. Kh6 {[%clk 0:00:08.6]} 86... Kh8 {[%clk 0:00:08.4]} 87.
Kg6 {[%clk 0:00:09.5]} 87... Kg8 {[%clk 0:00:09.3]} 88. Kg5 {[%clk 0:00:10.3]}
88... Kh8 {[%clk 0:00:10.2]} 89. Kh5 {[%clk 0:00:11.2]} 89... Kg8 {[%clk
0:00:11.1]} 90. Kg5 {[%clk 0:00:12.1]} 90... Kh8 {[%clk 0:00:12]} 1/2-1/2